[Event "*** Titled Tuesday Blitz"]
[Site "Chess.com"]
[Date "2021.03.09"]
[Round "4"]
[White "AniJak"]
[Black "MaevskiyNikolay"]
[Result "0-1"]
[WhiteElo "2320"]
[BlackElo "2526"]
[TimeControl "180+1"]
[EndTime "10:39:52 PST"]
[Termination "MaevskiyNikolay won by resignation"]

1. e4 {[%clk 0:03:00.9]} 1... c5 {[%clk 0:02:59.2]} 2. Nf3 {[%clk 0:02:59.6]}
2... e6 {[%clk 0:02:58.9]} 3. d4 {[%clk 0:02:59.6]} 3... cxd4 {[%clk 0:02:58.8]}
4. Nxd4 {[%clk 0:03:00.5]} 4... Nf6 {[%clk 0:02:59.4]} 5. Nc3 {[%clk 0:03:00.6]}
5... Bb4 {[%clk 0:03:00]} 6. Bd3 {[%clk 0:02:59.2]} 6... Nc6 {[%clk 0:02:58.1]}
7. Nxc6 {[%clk 0:02:57.9]} 7... bxc6 {[%clk 0:02:57.4]} 8. O-O {[%clk
0:02:58.3]} 8... d5 {[%clk 0:02:57.4]} 9. e5 {[%clk 0:02:52.3]} 9... Nd7 {[%clk
0:02:57.5]} 10. f4 {[%clk 0:02:51.3]} 10... g6 {[%clk 0:02:57.2]} 11. Kh1 {[%clk
0:02:50.4]} 11... h5 {[%clk 0:02:57]} 12. Na4 {[%clk 0:02:46.4]} 12... Nb6
{[%clk 0:02:54.5]} 13. c3 {[%clk 0:02:44.3]} 13... Be7 {[%clk 0:02:53.4]} 14.
Be3 {[%clk 0:02:41.7]} 14... Bd7 {[%clk 0:02:49.4]} 15. Nc5 {[%clk 0:02:40.5]}
15... h4 {[%clk 0:02:46.4]} 16. Nb7 {[%clk 0:02:29.6]} 16... Qb8 {[%clk
0:02:45.7]} 17. Nd6+ {[%clk 0:02:28.5]} 17... Bxd6 {[%clk 0:02:45.3]} 18. exd6
{[%clk 0:02:29.4]} 18... Qxd6 {[%clk 0:02:45.4]} 19. Bd4 {[%clk 0:02:28.1]}
19... Rh5 {[%clk 0:02:43.1]} 20. Be2 {[%clk 0:02:23.4]} 20... Rh7 {[%clk
0:02:40.8]} 21. Bg4 {[%clk 0:02:16.1]} 21... c5 {[%clk 0:02:36.3]} 22. Be5
{[%clk 0:02:15]} 22... Qc6 {[%clk 0:02:36.1]} 23. Bf6 {[%clk 0:02:02.4]} 23...
Nc4 {[%clk 0:02:34.9]} 24. Qe2 {[%clk 0:01:51.6]} 24... Kf8 {[%clk 0:02:34.9]}
25. b3 {[%clk 0:01:35.4]} 25... Nd6 {[%clk 0:02:34.5]} 26. c4 {[%clk 0:01:35.9]}
26... Ne4 {[%clk 0:02:32.1]} 27. cxd5 {[%clk 0:01:33.1]} 27... exd5 {[%clk
0:02:30.2]} 28. Be5 {[%clk 0:01:19.5]} 28... Re8 {[%clk 0:02:24.7]} 29. Rad1
{[%clk 0:01:06.4]} 29... Nc3 {[%clk 0:02:16.1]} 30. Bxd7 {[%clk 0:00:43.1]}
30... Qxd7 {[%clk 0:02:14.9]} 31. Qa6 {[%clk 0:00:37.7]} 31... Nxd1 {[%clk
0:02:12.1]} 32. Rxd1 {[%clk 0:00:37.6]} 32... h3 {[%clk 0:02:09]} 33. Qf6 {[%clk
0:00:16.2]} 33... hxg2+ {[%clk 0:02:07.9]} 34. Kg1 {[%clk 0:00:16.7]} 34... Qh3
{[%clk 0:01:58.1]} 35. f5 {[%clk 0:00:16.9]} 35... Qe3+ {[%clk 0:01:57.4]} 36.
Kxg2 {[%clk 0:00:17.3]} 36... Qe2+ {[%clk 0:01:55.8]} 0-1

[Event "*** Titled Tuesday Blitz"]
[Site "Chess.com"]
[Date "2021.03.09"]
[Round "4"]
[White "Vyacheslav_N"]
[Black "beto-betun"]
[Result "1-0"]
[WhiteElo "2360"]
[BlackElo "2212"]
[TimeControl "180+1"]
[EndTime "10:39:53 PST"]
[Termination "Vyacheslav_N won on time"]

1. Nf3 {[%clk 0:02:59.7]} 1... c5 {[%clk 0:02:57.9]} 2. g3 {[%clk 0:03:00.6]}
2... Nc6 {[%clk 0:02:57.1]} 3. Bg2 {[%clk 0:02:58.6]} 3... g6 {[%clk 0:02:57.6]}
4. O-O {[%clk 0:02:58.8]} 4... Bg7 {[%clk 0:02:57.7]} 5. e4 {[%clk 0:02:55]}
5... e6 {[%clk 0:02:54.6]} 6. c3 {[%clk 0:02:52.9]} 6... Nge7 {[%clk 0:02:51.2]}
7. d4 {[%clk 0:02:52.4]} 7... cxd4 {[%clk 0:02:52.1]} 8. cxd4 {[%clk 0:02:52.8]}
8... d5 {[%clk 0:02:49.9]} 9. e5 {[%clk 0:02:52.6]} 9... O-O {[%clk 0:02:46.3]}
10. Nc3 {[%clk 0:02:51.9]} 10... a6 {[%clk 0:02:35.1]} 11. Ne2 {[%clk
0:02:51.5]} 11... Nf5 {[%clk 0:02:28]} 12. h4 {[%clk 0:02:49.8]} 12... b5 {[%clk
0:02:23]} 13. h5 {[%clk 0:02:48.8]} 13... Bd7 {[%clk 0:02:11.3]} 14. Bg5 {[%clk
0:02:40.6]} 14... Qb6 {[%clk 0:02:09.8]} 15. g4 {[%clk 0:02:39.5]} 15... Nfe7
{[%clk 0:01:59.7]} 16. Bf6 {[%clk 0:02:34.4]} 16... gxh5 {[%clk 0:01:43.2]} 17.
Qd2 {[%clk 0:02:31.7]} 17... hxg4 {[%clk 0:01:29.3]} 18. Qg5 {[%clk 0:02:30.1]}
18... Ng6 {[%clk 0:01:21.6]} 19. Qxg4 {[%clk 0:02:26.5]} 19... Rac8 {[%clk
0:01:01]} 20. Nf4 {[%clk 0:02:05.7]} 20... Nxd4 {[%clk 0:00:42.4]} 21. Bxg7
{[%clk 0:02:02.7]} 21... Nxf3+ {[%clk 0:00:40.9]} 22. Bxf3 {[%clk 0:02:01.7]}
22... Kxg7 {[%clk 0:00:36]} 23. Nh5+ {[%clk 0:02:01.2]} 23... Kh8 {[%clk
0:00:31.6]} 24. Nf6 {[%clk 0:02:02.1]} 24... Nxe5 {[%clk 0:00:20.2]} 25. Qh5
{[%clk 0:02:01.3]} 25... Nxf3+ {[%clk 0:00:19.1]} 26. Kh1 {[%clk 0:02:01.1]}
26... Ng5 {[%clk 0:00:11.7]} 27. f4 {[%clk 0:02:00.3]} 27... d4 {[%clk
0:00:06.1]} 28. fxg5 {[%clk 0:01:58.8]} 28... Bc6+ {[%clk 0:00:06.7]} 29. Kh2
{[%clk 0:01:58.5]} 29... Be4 {[%clk 0:00:06.7]} 30. Nxe4 {[%clk 0:01:56.9]}
30... Qc7+ {[%clk 0:00:07.4]} 31. Kh3 {[%clk 0:01:55.8]} 31... Qe5 {[%clk
0:00:04.6]} 32. Nf6 {[%clk 0:01:56.2]} 32... Qe3+ {[%clk 0:00:02.9]} 33. Rf3
{[%clk 0:01:56.6]} 1-0

[Event "*** Titled Tuesday Blitz"]
[Site "Chess.com"]
[Date "2021.03.09"]
[Round "4"]
[White "dennisodessa"]
[Black "Love_craft"]
[Result "0-1"]
[WhiteElo "2341"]
[BlackElo "2547"]
[TimeControl "180+1"]
[EndTime "10:39:56 PST"]
[Termination "Love_craft won by resignation"]

1. c4 {[%clk 0:03:00.7]} 1... e5 {[%clk 0:02:57.8]} 2. g3 {[%clk 0:02:59.9]}
2... d6 {[%clk 0:02:57.6]} 3. Bg2 {[%clk 0:03:00.8]} 3... g6 {[%clk 0:02:57.8]}
4. Nc3 {[%clk 0:02:59.9]} 4... Bg7 {[%clk 0:02:57.7]} 5. Nf3 {[%clk 0:03:00.4]}
5... Nc6 {[%clk 0:02:56.4]} 6. O-O {[%clk 0:03:01.3]} 6... Be6 {[%clk
0:02:53.3]} 7. d3 {[%clk 0:02:53.8]} 7... Nh6 {[%clk 0:02:49.5]} 8. Rb1 {[%clk
0:02:50.5]} 8... O-O {[%clk 0:02:43.6]} 9. b4 {[%clk 0:02:49.3]} 9... f5 {[%clk
0:02:42.7]} 10. Ng5 {[%clk 0:02:46.7]} 10... Bc8 {[%clk 0:02:39.7]} 11. b5
{[%clk 0:02:26.8]} 11... Nd4 {[%clk 0:02:35.1]} 12. Bd5+ {[%clk 0:02:26.9]}
12... Kh8 {[%clk 0:02:34.6]} 13. e3 {[%clk 0:02:27.7]} 13... Qxg5 {[%clk
0:01:38.8]} 14. exd4 {[%clk 0:02:27.3]} 14... Qd8 {[%clk 0:01:22.5]} 15. dxe5
{[%clk 0:02:28.2]} 15... dxe5 {[%clk 0:01:22.6]} 16. f4 {[%clk 0:02:15.9]} 16...
Ng4 {[%clk 0:01:11.3]} 17. Ne2 {[%clk 0:02:01.1]} 17... a6 {[%clk 0:00:48.7]}
18. a4 {[%clk 0:01:19.7]} 18... axb5 {[%clk 0:00:46.9]} 19. axb5 {[%clk
0:01:20.6]} 19... Ra2 {[%clk 0:00:42.5]} 20. Rb2 {[%clk 0:01:20.3]} 20... Rxb2
{[%clk 0:00:37.9]} 21. Bxb2 {[%clk 0:01:18.3]} 21... c6 {[%clk 0:00:38.2]} 22.
bxc6 {[%clk 0:01:13.1]} 22... bxc6 {[%clk 0:00:39.1]} 23. Bxc6 {[%clk
0:01:12.6]} 23... Qb6+ {[%clk 0:00:36.9]} 24. Kh1 {[%clk 0:01:08.8]} 24... Qxc6+
{[%clk 0:00:35.7]} 0-1

[Event "*** Titled Tuesday Blitz"]
[Site "Chess.com"]
[Date "2021.03.09"]
[Round "4"]
[White "louis198"]
[Black "losersgame"]
[Result "1-0"]
[WhiteElo "2596"]
[BlackElo "2361"]
[TimeControl "180+1"]
[EndTime "10:40:00 PST"]
[Termination "louis198 won on time"]

1. d4 {[%clk 0:02:58.9]} 1... Nf6 {[%clk 0:02:59.7]} 2. c4 {[%clk 0:02:59.5]}
2... Nc6 {[%clk 0:02:59.4]} 3. e3 {[%clk 0:02:58.5]} 3... e5 {[%clk 0:02:59.3]}
4. Nf3 {[%clk 0:02:58.5]} 4... Bb4+ {[%clk 0:02:56.9]} 5. Bd2 {[%clk 0:02:57]}
5... Qe7 {[%clk 0:02:47.6]} 6. Be2 {[%clk 0:02:55.3]} 6... Bxd2+ {[%clk
0:02:23.4]} 7. Nbxd2 {[%clk 0:02:40.8]} 7... d6 {[%clk 0:02:22.8]} 8. O-O {[%clk
0:02:39.9]} 8... O-O {[%clk 0:02:22.1]} 9. Rc1 {[%clk 0:02:39.6]} 9... Bg4
{[%clk 0:02:18.6]} 10. h3 {[%clk 0:02:39.1]} 10... Bh5 {[%clk 0:02:17.6]} 11. c5
{[%clk 0:02:39.4]} 11... dxc5 {[%clk 0:01:42.5]} 12. dxc5 {[%clk 0:02:32.9]}
12... Rad8 {[%clk 0:01:37.9]} 13. Qc2 {[%clk 0:02:30.9]} 13... e4 {[%clk
0:01:34.8]} 14. a3 {[%clk 0:02:12.2]} 14... exf3 {[%clk 0:01:33.6]} 15. Bxf3
{[%clk 0:02:13.1]} 15... Bxf3 {[%clk 0:01:32.3]} 16. Nxf3 {[%clk 0:02:14]} 16...
Ne5 {[%clk 0:01:12.6]} 17. Nd4 {[%clk 0:02:13.9]} 17... g6 {[%clk 0:01:12.8]}
18. b4 {[%clk 0:02:13.9]} 18... h5 {[%clk 0:01:11.3]} 19. b5 {[%clk 0:02:10.3]}
19... Rd5 {[%clk 0:01:08.4]} 20. Rfe1 {[%clk 0:02:04.2]} 20... Rfd8 {[%clk
0:01:06.9]} 21. f4 {[%clk 0:02:04]} 21... Ned7 {[%clk 0:01:04.2]} 22. c6 {[%clk
0:02:04]} 22... Rc5 {[%clk 0:00:25.8]} 23. Qb2 {[%clk 0:02:03.8]} 23... Rxc1
{[%clk 0:00:24.7]} 24. Qxc1 {[%clk 0:02:04.3]} 24... bxc6 {[%clk 0:00:14.1]} 25.
Nxc6 {[%clk 0:02:04.5]} 25... Qf8 {[%clk 0:00:14.8]} 26. Nxd8 {[%clk 0:02:04.2]}
26... Qxd8 {[%clk 0:00:15.6]} 27. a4 {[%clk 0:02:04.3]} 27... Nb6 {[%clk
0:00:13.8]} 28. a5 {[%clk 0:02:03.7]} 28... Nbd5 {[%clk 0:00:13.3]} 29. e4
{[%clk 0:02:04]} 29... Nb4 {[%clk 0:00:12.7]} 30. Qc4 {[%clk 0:02:00.5]} 30...
Qe7 {[%clk 0:00:11.2]} 31. Rb1 {[%clk 0:01:53.8]} 31... c5 {[%clk 0:00:04.8]}
32. bxc6 {[%clk 0:01:53.4]} 1-0

[Event "*** Titled Tuesday Blitz"]
[Site "Chess.com"]
[Date "2021.03.09"]
[Round "4"]
[White "Mbneu"]
[Black "MasterKroket"]
[Result "0-1"]
[WhiteElo "2296"]
[BlackElo "2474"]
[TimeControl "180+1"]
[EndTime "10:40:00 PST"]
[Termination "MasterKroket won by resignation"]

1. d4 {[%clk 0:03:00.9]} 1... Nf6 {[%clk 0:03:00]} 2. c4 {[%clk 0:03:00.8]} 2...
e6 {[%clk 0:03:00.2]} 3. Nc3 {[%clk 0:03:01.3]} 3... Bb4 {[%clk 0:02:59.8]} 4.
Bg5 {[%clk 0:03:01.7]} 4... h6 {[%clk 0:02:59.6]} 5. Bh4 {[%clk 0:03:00.8]} 5...
c5 {[%clk 0:02:59.7]} 6. d5 {[%clk 0:03:01.1]} 6... exd5 {[%clk 0:02:58.9]} 7.
cxd5 {[%clk 0:03:02]} 7... d6 {[%clk 0:02:58]} 8. e3 {[%clk 0:03:01.8]} 8... Bf5
{[%clk 0:02:53.3]} 9. Bb5+ {[%clk 0:02:52.9]} 9... Nbd7 {[%clk 0:02:51.1]} 10.
Nf3 {[%clk 0:02:48.4]} 10... O-O {[%clk 0:02:49.3]} 11. Bxd7 {[%clk 0:02:46.5]}
11... Bxd7 {[%clk 0:02:47.1]} 12. O-O {[%clk 0:02:44.5]} 12... Bf5 {[%clk
0:02:42.1]} 13. Ne2 {[%clk 0:02:35.1]} 13... Re8 {[%clk 0:02:34.9]} 14. Nf4
{[%clk 0:02:18.4]} 14... Re4 {[%clk 0:02:19.5]} 15. Nh5 {[%clk 0:02:10.6]} 15...
Rxh4 {[%clk 0:02:18.4]} 16. Nxh4 {[%clk 0:02:07.4]} 16... Be4 {[%clk 0:01:53.7]}
17. a3 {[%clk 0:01:04.5]} 17... Ba5 {[%clk 0:01:49.1]} 18. b4 {[%clk 0:01:03.7]}
18... cxb4 {[%clk 0:01:46.2]} 19. axb4 {[%clk 0:01:02.9]} 19... Bb6 {[%clk
0:01:35.2]} 20. Nxf6+ {[%clk 0:01:01.8]} 20... Qxf6 {[%clk 0:01:33.9]} 21. Nf3
{[%clk 0:00:55.6]} 21... Qf5 {[%clk 0:01:27]} 22. Nd4 {[%clk 0:00:51.8]} 22...
Qxd5 {[%clk 0:01:23.4]} 23. f3 {[%clk 0:00:51.9]} 23... Bg6 {[%clk 0:01:21.1]}
24. Qd2 {[%clk 0:00:50.5]} 24... Re8 {[%clk 0:01:17.9]} 25. Rad1 {[%clk
0:00:48.4]} 25... Kh7 {[%clk 0:01:15.7]} 26. Rfe1 {[%clk 0:00:47.7]} 26... a5
{[%clk 0:01:13.8]} 27. bxa5 {[%clk 0:00:46.1]} 27... Bxa5 {[%clk 0:01:14]} 28.
Qc2 {[%clk 0:00:35.6]} 28... Bxc2 {[%clk 0:01:07.2]} 0-1

[Event "*** Titled Tuesday Blitz"]
[Site "Chess.com"]
[Date "2021.03.09"]
[Round "4"]
[White "coco_crc"]
[Black "jens1102"]
[Result "0-1"]
[WhiteElo "2201"]
[BlackElo "2425"]
[TimeControl "180+1"]
[EndTime "10:40:00 PST"]
[Termination "jens1102 won by checkmate"]

1. e4 {[%clk 0:02:43.1]} 1... c6 {[%clk 0:02:59]} 2. Nf3 {[%clk 0:02:43]} 2...
d5 {[%clk 0:02:59.9]} 3. Nc3 {[%clk 0:02:43.5]} 3... d4 {[%clk 0:02:59.5]} 4.
Ne2 {[%clk 0:02:42.4]} 4... c5 {[%clk 0:03:00.4]} 5. c3 {[%clk 0:02:42.7]} 5...
Nc6 {[%clk 0:03:01.3]} 6. cxd4 {[%clk 0:02:36]} 6... cxd4 {[%clk 0:03:02.2]} 7.
Qa4 {[%clk 0:02:35.7]} 7... e5 {[%clk 0:02:36.5]} 8. Nxe5 {[%clk 0:02:35]} 8...
Bd7 {[%clk 0:02:36.6]} 9. Nxd7 {[%clk 0:02:16.3]} 9... Qxd7 {[%clk 0:02:35.4]}
10. d3 {[%clk 0:02:10.7]} 10... Bb4+ {[%clk 0:02:34.6]} 11. Bd2 {[%clk
0:02:10.5]} 11... Bxd2+ {[%clk 0:02:34.5]} 12. Kxd2 {[%clk 0:02:11.4]} 12... Nf6
{[%clk 0:02:34.2]} 13. h3 {[%clk 0:02:04.5]} 13... O-O {[%clk 0:02:33.2]} 14.
Ng3 {[%clk 0:02:03.7]} 14... Rac8 {[%clk 0:02:28.7]} 15. Be2 {[%clk 0:02:02.6]}
15... Rc7 {[%clk 0:02:21]} 16. Rhc1 {[%clk 0:02:02.2]} 16... Rfc8 {[%clk
0:02:21.3]} 17. Rc4 {[%clk 0:01:59.2]} 17... a6 {[%clk 0:02:18.4]} 18. Rc5
{[%clk 0:01:45.2]} 18... b6 {[%clk 0:02:04.5]} 19. Rcc1 {[%clk 0:01:25.2]} 19...
b5 {[%clk 0:01:56.5]} 20. Qb3 {[%clk 0:01:23.1]} 20... Qd6 {[%clk 0:01:47.3]}
21. Ke1 {[%clk 0:01:12.4]} 21... g6 {[%clk 0:01:39.3]} 22. Kf1 {[%clk
0:01:10.5]} 22... Kg7 {[%clk 0:01:36.4]} 23. Qd1 {[%clk 0:01:09]} 23... Qf4
{[%clk 0:01:30.7]} 24. Kg1 {[%clk 0:01:04.7]} 24... h5 {[%clk 0:01:23.8]} 25.
Rc5 {[%clk 0:01:00.8]} 25... Nb4 {[%clk 0:01:21.3]} 26. Rxc7 {[%clk 0:00:50.8]}
26... Rxc7 {[%clk 0:01:22.2]} 27. a3 {[%clk 0:00:43.6]} 27... Nc2 {[%clk
0:01:19.5]} 28. Rc1 {[%clk 0:00:40]} 28... Ne3 {[%clk 0:01:18.8]} 29. fxe3
{[%clk 0:00:38.5]} 29... Qxe3+ {[%clk 0:01:18]} 30. Kh2 {[%clk 0:00:35.4]} 30...
Rxc1 {[%clk 0:01:18.9]} 31. Qb3 {[%clk 0:00:35.5]} 31... Qg1# {[%clk 0:01:16.6]}
0-1

[Event "*** Titled Tuesday Blitz"]
[Site "Chess.com"]
[Date "2021.03.09"]
[Round "4"]
[White "guillembaches"]
[Black "GM_Crest"]
[Result "0-1"]
[WhiteElo "2459"]
[BlackElo "2774"]
[TimeControl "180+1"]
[EndTime "10:40:01 PST"]
[Termination "GM_Crest won on time"]

1. e4 {[%clk 0:02:59.4]} 1... e6 {[%clk 0:02:59]} 2. d4 {[%clk 0:02:58.6]} 2...
d5 {[%clk 0:02:59.1]} 3. exd5 {[%clk 0:02:59.5]} 3... exd5 {[%clk 0:02:58.5]} 4.
Nf3 {[%clk 0:03:00.1]} 4... Bd6 {[%clk 0:02:58]} 5. c4 {[%clk 0:02:59.3]} 5...
Nf6 {[%clk 0:02:58]} 6. Nc3 {[%clk 0:02:58.9]} 6... O-O {[%clk 0:02:57.6]} 7.
cxd5 {[%clk 0:02:59]} 7... Re8+ {[%clk 0:02:54.6]} 8. Be2 {[%clk 0:02:42.5]}
8... h6 {[%clk 0:02:54.7]} 9. O-O {[%clk 0:02:38.1]} 9... Nbd7 {[%clk
0:02:55.2]} 10. Bc4 {[%clk 0:02:34.6]} 10... Nb6 {[%clk 0:02:54.4]} 11. Bb3
{[%clk 0:02:34.6]} 11... Bg4 {[%clk 0:02:54.1]} 12. h3 {[%clk 0:02:34.6]} 12...
Bh5 {[%clk 0:02:54]} 13. Qd3 {[%clk 0:02:34.6]} 13... Bg6 {[%clk 0:02:50]} 14.
Qd1 {[%clk 0:02:26.6]} 14... Bh5 {[%clk 0:02:47.2]} 15. Qd3 {[%clk 0:02:25.7]}
15... Bg6 {[%clk 0:02:46.8]} 16. Qd1 {[%clk 0:02:25.6]} 16... Ne4 {[%clk
0:02:47.1]} 17. Re1 {[%clk 0:02:12.7]} 17... Qf6 {[%clk 0:02:44.9]} 18. Be3
{[%clk 0:02:00.4]} 18... Rad8 {[%clk 0:02:41.7]} 19. Rc1 {[%clk 0:01:52.5]}
19... Nxc3 {[%clk 0:02:30.3]} 20. Rxc3 {[%clk 0:01:31.6]} 20... Bb4 {[%clk
0:02:29.3]} 21. Rxc7 {[%clk 0:01:31.5]} 21... Bxe1 {[%clk 0:02:27.3]} 22. Qxe1
{[%clk 0:01:26]} 22... Re7 {[%clk 0:02:11.4]} 23. Qc3 {[%clk 0:01:05]} 23... Be4
{[%clk 0:02:08.7]} 24. Ne5 {[%clk 0:00:56.2]} 24... Bxd5 {[%clk 0:02:05.7]} 25.
Qc5 {[%clk 0:00:39.9]} 25... Rxc7 {[%clk 0:02:02.8]} 26. Qxc7 {[%clk 0:00:39.9]}
26... Rc8 {[%clk 0:02:03]} 27. Qxc8+ {[%clk 0:00:26.3]} 27... Nxc8 {[%clk
0:02:02.1]} 28. Bxd5 {[%clk 0:00:26.9]} 28... Nd6 {[%clk 0:02:02.4]} 29. Nc4
{[%clk 0:00:19.7]} 29... Nf5 {[%clk 0:01:59.4]} 30. Ne5 {[%clk 0:00:16.8]} 30...
Nd6 {[%clk 0:01:56.8]} 31. Nc4 {[%clk 0:00:16.7]} 31... b5 {[%clk 0:01:53.3]}
32. Nxd6 {[%clk 0:00:14.6]} 32... Qxd6 {[%clk 0:01:54.1]} 33. Bb3 {[%clk
0:00:14.8]} 33... a5 {[%clk 0:01:54.2]} 34. a4 {[%clk 0:00:13.7]} 34... Qb4
{[%clk 0:01:53.3]} 0-1

[Event "*** Titled Tuesday Blitz"]
[Site "Chess.com"]
[Date "2021.03.09"]
[Round "4"]
[White "volunteers1998"]
[Black "c_r_e_e_p_e_r"]
[Result "1-0"]
[WhiteElo "2201"]
[BlackElo "2398"]
[TimeControl "180+1"]
[EndTime "10:40:01 PST"]
[Termination "volunteers1998 won by checkmate"]

1. e4 {[%clk 0:03:00.9]} 1... c5 {[%clk 0:03:00.3]} 2. Nf3 {[%clk 0:02:58.3]}
2... e6 {[%clk 0:03:00.9]} 3. d4 {[%clk 0:02:56.1]} 3... cxd4 {[%clk 0:03:01.8]}
4. Nxd4 {[%clk 0:02:54.4]} 4... a6 {[%clk 0:03:02.3]} 5. Nc3 {[%clk 0:02:48]}
5... Qc7 {[%clk 0:03:02.7]} 6. Be2 {[%clk 0:02:38.5]} 6... Nf6 {[%clk 0:03:03]}
7. f3 {[%clk 0:02:32]} 7... Bb4 {[%clk 0:03:02.2]} 8. O-O {[%clk 0:02:28.2]}
8... Bxc3 {[%clk 0:02:58.7]} 9. bxc3 {[%clk 0:02:26]} 9... d5 {[%clk 0:02:59.4]}
10. Ba3 {[%clk 0:02:12.6]} 10... Qxc3 {[%clk 0:02:58.2]} 11. Qd3 {[%clk
0:02:03.4]} 11... Qxd3 {[%clk 0:02:51.3]} 12. Bxd3 {[%clk 0:02:02.7]} 12... e5
{[%clk 0:02:50.7]} 13. Nf5 {[%clk 0:01:54.9]} 13... Bxf5 {[%clk 0:02:49]} 14.
exf5 {[%clk 0:01:54.9]} 14... Nbd7 {[%clk 0:02:49.4]} 15. c4 {[%clk 0:01:46.8]}
15... d4 {[%clk 0:02:44.4]} 16. Rfe1 {[%clk 0:01:43.7]} 16... O-O-O {[%clk
0:02:42.7]} 17. Be7 {[%clk 0:01:39.5]} 17... Rde8 {[%clk 0:02:41.5]} 18. Bd6
{[%clk 0:01:33.8]} 18... g6 {[%clk 0:02:34.4]} 19. Rab1 {[%clk 0:01:27]} 19...
g5 {[%clk 0:02:19.9]} 20. c5 {[%clk 0:01:22.9]} 20... Rhg8 {[%clk 0:01:41.5]}
21. c6 {[%clk 0:01:16.9]} 21... bxc6 {[%clk 0:01:41.6]} 22. Bxa6+ {[%clk
0:01:08.7]} 22... Kd8 {[%clk 0:01:41.9]} 23. Rb7 {[%clk 0:00:59.2]} 23... Nd5
{[%clk 0:01:37.9]} 24. Reb1 {[%clk 0:00:49.6]} 24... Nc3 {[%clk 0:01:37.8]} 25.
R1b3 {[%clk 0:00:41.5]} 25... e4 {[%clk 0:01:36.7]} 26. Rc7 {[%clk 0:00:29.8]}
26... f6 {[%clk 0:01:02.6]} 27. Rc8# {[%clk 0:00:27.8]} 1-0

[Event "*** Titled Tuesday Blitz"]
[Site "Chess.com"]
[Date "2021.03.09"]
[Round "4"]
[White "Andrii_Prydun"]
[Black "Olga_Girya"]
[Result "0-1"]
[WhiteElo "2275"]
[BlackElo "2461"]
[TimeControl "180+1"]
[EndTime "10:40:03 PST"]
[Termination "Olga_Girya won by resignation"]

1. d4 {[%clk 0:02:38.9]} 1... Nf6 {[%clk 0:02:58.2]} 2. Nc3 {[%clk 0:02:38.8]}
2... d5 {[%clk 0:02:57.6]} 3. Bf4 {[%clk 0:02:38.8]} 3... c5 {[%clk 0:02:56.3]}
4. e3 {[%clk 0:02:38.7]} 4... cxd4 {[%clk 0:02:56.4]} 5. exd4 {[%clk 0:02:38.6]}
5... Nc6 {[%clk 0:02:56.2]} 6. Nb5 {[%clk 0:02:37.2]} 6... e5 {[%clk 0:01:24.8]}
7. dxe5 {[%clk 0:02:33.4]} 7... Ne4 {[%clk 0:01:24.3]} 8. Qxd5 {[%clk
0:02:31.1]} 8... Bb4+ {[%clk 0:00:57.1]} 9. c3 {[%clk 0:02:28.6]} 9... Qxd5
{[%clk 0:00:48.9]} 10. Nc7+ {[%clk 0:02:25.1]} 10... Kf8 {[%clk 0:00:49.5]} 11.
Nxd5 {[%clk 0:02:26]} 11... Bc5 {[%clk 0:00:49.2]} 12. Ne3 {[%clk 0:02:03.6]}
12... g5 {[%clk 0:00:46.7]} 13. Bg3 {[%clk 0:02:04.2]} 13... Bxe3 {[%clk
0:00:45.2]} 14. fxe3 {[%clk 0:02:03.5]} 14... Nxg3 {[%clk 0:00:45.2]} 15. hxg3
{[%clk 0:02:03.6]} 15... Nxe5 {[%clk 0:00:45.8]} 16. Nf3 {[%clk 0:02:03.4]}
16... Ng4 {[%clk 0:00:43.2]} 17. Nxg5 {[%clk 0:02:01.3]} 17... Bf5 {[%clk
0:00:40.8]} 18. Bc4 {[%clk 0:01:55.8]} 18... Nxe3 {[%clk 0:00:37.9]} 19. Bb3
{[%clk 0:01:55.7]} 19... f6 {[%clk 0:00:33.7]} 20. Kf2 {[%clk 0:01:54.6]} 20...
Ng4+ {[%clk 0:00:32.6]} 21. Ke2 {[%clk 0:01:50]} 21... Re8+ {[%clk 0:00:31.4]}
22. Kd2 {[%clk 0:01:44]} 22... Rd8+ {[%clk 0:00:30.6]} 23. Ke1 {[%clk
0:01:35.4]} 23... fxg5 {[%clk 0:00:29.8]} 24. Rf1 {[%clk 0:01:31]} 24... Kg7
{[%clk 0:00:29.3]} 25. Rxf5 {[%clk 0:01:29.4]} 25... Rhe8+ {[%clk 0:00:29.4]}
0-1

[Event "*** Titled Tuesday Blitz"]
[Site "Chess.com"]
[Date "2021.03.09"]
[Round "4"]
[White "Zhuu96"]
[Black "ErikBlomqvist"]
[Result "1-0"]
[WhiteElo "2864"]
[BlackElo "2577"]
[TimeControl "180+1"]
[EndTime "10:40:17 PST"]
[Termination "Zhuu96 won by resignation"]

1. e4 {[%clk 0:03:00.9]} 1... c5 {[%clk 0:02:55]} 2. Nf3 {[%clk 0:03:00.6]} 2...
e6 {[%clk 0:02:54.9]} 3. d4 {[%clk 0:03:00.6]} 3... cxd4 {[%clk 0:02:55.8]} 4.
Nxd4 {[%clk 0:03:01.4]} 4... Nc6 {[%clk 0:02:56.3]} 5. Nc3 {[%clk 0:03:00.7]}
5... a6 {[%clk 0:02:56.6]} 6. g4 {[%clk 0:02:58.4]} 6... Nge7 {[%clk 0:02:46.8]}
7. h4 {[%clk 0:02:57.6]} 7... Nxd4 {[%clk 0:02:43.3]} 8. Qxd4 {[%clk 0:02:57]}
8... Nc6 {[%clk 0:02:43.9]} 9. Qe3 {[%clk 0:02:53.4]} 9... b5 {[%clk 0:02:43.7]}
10. Bd2 {[%clk 0:02:47.1]} 10... Bb7 {[%clk 0:02:40.2]} 11. O-O-O {[%clk
0:02:46.3]} 11... Rc8 {[%clk 0:02:26.4]} 12. f4 {[%clk 0:02:39]} 12... Na5
{[%clk 0:02:15.7]} 13. Kb1 {[%clk 0:02:34.2]} 13... b4 {[%clk 0:01:51.7]} 14.
Na4 {[%clk 0:02:33.5]} 14... Nc4 {[%clk 0:01:40.3]} 15. Qd4 {[%clk 0:02:20.3]}
15... Nxd2+ {[%clk 0:01:19.5]} 16. Rxd2 {[%clk 0:02:19.3]} 16... d5 {[%clk
0:00:47.8]} 17. exd5 {[%clk 0:01:48.4]} 17... Qxd5 {[%clk 0:00:30.7]} 18. Qxd5
{[%clk 0:01:48.2]} 18... Bxd5 {[%clk 0:00:30.7]} 19. Bxa6 {[%clk 0:01:47.6]}
19... Rb8 {[%clk 0:00:16.4]} 20. Re1 {[%clk 0:01:44.2]} 20... Bc6 {[%clk
0:00:11.3]} 21. b3 {[%clk 0:01:44.2]} 21... Be7 {[%clk 0:00:10.7]} 22. h5 {[%clk
0:01:40.4]} 22... O-O {[%clk 0:00:07.7]} 23. g5 {[%clk 0:01:35.1]} 23... Rfd8
{[%clk 0:00:07.6]} 24. Rxd8+ {[%clk 0:01:26.9]} 24... Rxd8 {[%clk 0:00:07.6]}
25. Nb2 {[%clk 0:01:27.5]} 25... Rd2 {[%clk 0:00:05.8]} 26. g6 {[%clk
0:01:26.1]} 26... Rf2 {[%clk 0:00:04.5]} 27. gxf7+ {[%clk 0:01:25.3]} 27... Kxf7
{[%clk 0:00:04.6]} 28. Nd3 {[%clk 0:01:25.8]} 1-0